bitfinex-derivatives/quotes_SOLF0:USTF0_20250901
["timestamp","ask_amount","ask_price","bid_price","bid_amount"]
[1756754638461,129.14,199.9,199.85,1.79655793]
[1756754638657,129.14,199.9,199.86,4.61925146]
[1756754638863,129.14,199.9,199.87,4.61925146]
[1756754639164,129.14,199.9,199.88,4.61925146]
[1756754639461,129.14,199.9,199.84,0.03241763]
[1756754639462,129.14,199.9,199.85,1.79655793]
[1756754639661,129.14,199.9,199.86,4.61975686]
[1756754639858,129.14,199.9,199.87,4.61975686]
[1756754640058,129.14,199.9,199.85,1.79655793]
[1756754640363,121.7,199.89,199.86,12.53993075]
[1756754640563,7.42,199.88,199.87,4.61993075]
[1756754641966,129.12,199.88,199.87,4.61993075]
[1756754642859,7.42,199.93,199.87,6.41648868]
[1756754643067,121.68,199.92,199.89,1.79655793]
[1756754643264,7.42,199.91,199.9,4.46643491]
[1756754643968,7.42,199.91,199.9,9.23568252]
[1756754646270,7.42,199.91,199.9,9.21259336]
[1756754646766,2.66747239,199.94,199.9,18.92915129]
[1756754646767,7.42,199.93,199.9,18.92915129]
[1756754646967,121.68,199.91,199.9,9.71655793]
[1756754647167,121.68,199.91,199.9,18.92910106]
[1756754647470,7.42,199.93,199.91,7.92]
[1756754647669,121.68,199.92,199.89,0.03182778]
[1756754647865,8.02,199.91,199.9,11.00713987]
[1756754649065,129.7,199.92,199.9,11.00713987]
[1756754649367,129.7,199.92,199.91,9.21058194]
[1756754653268,336.36,200.0,199.91,9.21058194]
[1756754653467,336.36,200.0,199.9,1.79655793]
[1756754653468,8.02,199.98,199.92,19.20713987]
[1756754653664,121.66,199.97,199.93,17.41058194]
[1756754653974,121.66,199.97,199.94,9.21058194]
[1756754654171,8.02,199.96,199.95,9.21058194]
[1756754656274,8.02,199.96,199.95,4.46310394]
[1756754656575,8.02,199.96,199.94,0.03222628]
[1756754656773,0.87067477,199.98,199.95,4.48269912]
[1756754656975,121.64,199.97,199.94,0.03222628]
[1756754657174,8.02,199.96,199.95,4.48269912]
[1756754659975,8.02,199.96,199.94,0.03222628]
[1756754660282,121.64,199.95,199.94,8.23222628]
[1756754660477,121.64,199.95,199.94,12.71190912]
[1756754660980,0.87067477,199.98,199.94,12.71190912]
[1756754661277,336.36,200.0,199.95,11.02653205]
[1756754661482,336.36,200.0,199.94,0.03222628]
[1756754661483,121.64,199.99,199.98,8.2]
[1756754661680,121.64,199.99,199.98,17.42766328]
[1756754663081,129.66,199.99,199.98,9.22766328]
[1756754663270,122.51058765,199.99,199.94,8.23222628]
[1756754663582,122.51058765,199.99,199.95,9.21695871]
[1756754663782,122.51058765,199.99,199.96,9.21695871]
[1756754664081,9.81655793,199.98,199.94,0.03222628]
[1756754664282,8.02,199.96,199.95,4.47396147]
[1756754665877,123.41655793,199.97,199.94,0.03222628]
[1756754666077,8.02,199.96,199.94,0.03222628]
[1756754666290,129.64,199.95,199.94,0.03222628]
[1756754667385,8.02,199.95,199.94,0.03222628]
[1756754667585,129.64,199.95,199.94,0.03222628]
[1756754667988,8.02,199.95,199.94,0.03222628]
[1756754668192,129.64,199.95,199.94,0.03222628]
[1756754668988,132.94466551,199.95,199.86,8.2]
[1756754669188,132.44466551,199.95,199.87,9.23296838]
[1756754669489,132.44466551,199.95,199.88,9.23296838]
[1756754669694,132.44466551,199.95,199.89,4.48059856]
[1756754669991,132.44466551,199.95,199.83,8.2]
[1756754670188,2.80466551,199.92,199.84,9.23638639]
[1756754670489,8.02,199.9,199.85,9.23638639]
[1756754670689,121.62,199.89,199.86,9.23638639]
[1756754670884,121.62,199.89,199.87,4.48238767]
[1756754670885,8.02,199.88,199.87,4.48238767]
[1756754671185,8.02,199.88,199.87,4.48441921]
[1756754671392,8.02,199.88,199.8,8.2]
[1756754671685,2.80466551,199.85,199.81,9.24039995]
[1756754671986,8.02,199.83,199.82,9.24039995]
[1756754672485,129.98,199.83,199.82,4.48431777]
[1756754672985,129.98,199.83,199.73,8.2]
[1756754672986,133.28466551,199.83,199.73,8.2]
[1756754673186,132.78466551,199.83,199.74,9.06914191]
[1756754673386,132.78466551,199.83,199.75,9.06914191]
[1756754673588,132.78466551,199.83,199.76,9.06914191]
[1756754673787,8.02,199.79,199.77,9.06914191]
[1756754673980,0.03814689,199.8,199.71,2.80466551]
[1756754673981,0.03814689,199.8,199.78,12.68718807]
[1756754674186,0.03814689,199.8,199.79,17.26310644]
[1756754674382,122.12,199.8,199.79,17.26310644]
[1756754675188,0.03588116,199.81,199.8,8.2]
[1756754675390,122.15588116,199.81,199.8,17.26310644]
[1756754675995,122.15588116,199.81,199.8,17.76310644]
[1756754675996,0.03588116,199.81,199.8,17.76310644]
[1756754676995,0.03588116,199.81,199.8,17.26310644]
[1756754677199,0.03588116,199.81,199.8,20.56777195]
[1756754677695,0.03588116,199.81,199.8,20.52916852]
[1756754677884,8.02,199.9,199.8,20.52916852]
[1756754678089,20.04,199.89,199.82,7.72]
[1756754678285,8.02,199.9,199.84,7.72]
[1756754678497,122.3,199.89,199.85,4.45434973]
[1756754678697,8.21,199.93,199.87,7.72]
[1756754678999,122.3,199.92,199.88,12.17434973]
[1756754679192,130.51,199.92,199.89,4.45434973]
[1756754679399,344.61,199.95,199.85,7.72]
[1756754679598,122.32,199.94,199.88,7.75346143]
[1756754679893,122.32,199.94,199.89,4.45297365]
[1756754680195,122.32,199.94,199.88,0.03346143]
[1756754680493,8.21,199.93,199.89,4.45540716]
[1756754680698,8.21,199.93,199.88,0.03346143]
[1756754680888,8.21,199.93,199.89,4.45516218]
[1756754681089,8.21,199.93,199.88,0.03346143]
[1756754681293,8.21,199.9,199.88,0.03346143]
[1756754681496,130.55,199.89,199.88,0.03346143]
[1756754682201,122.38,199.89,199.88,4.48909197]
[1756754682496,8.21,199.94,199.88,4.48909197]
[1756754682696,125.28466551,199.93,199.88,0.03346143]
[1756754682992,8.21,199.92,199.88,0.03346143]
[1756754683391,122.48,199.93,199.88,0.03346143]
[1756754683702,122.48,199.93,199.89,7.72]
[1756754683999,122.48,199.93,199.9,12.17449217]
[1756754684196,122.48,199.93,199.89,7.72]
[1756754684392,122.48,199.93,199.9,4.45429679]
[1756754684589,122.48,199.93,199.91,4.45429679]
[1756754684900,122.48,199.93,199.89,7.72]
[1756754685094,122.48,199.93,199.9,12.15951269]
[1756754685290,122.48,199.93,199.91,4.43951269]
[1756754685492,122.48,199.93,199.88,0.03346143]
[1756754685696,8.21,199.92,199.89,4.44005373]
[1756754685897,8.21,199.92,199.9,4.44005373]
[1756754686100,122.48,199.93,199.88,0.03346143]
[1756754686296,122.54,199.92,199.89,4.44032095]
[1756754686490,122.54,199.92,199.9,12.16032095]
[1756754686792,122.54,199.92,199.91,4.44032095]
[1756754688197,122.54,199.92,199.9,7.72]
[1756754688404,122.54,199.92,199.91,4.43948766]
[1756754688804,122.54,199.92,199.91,4.43932072]
[1756754689005,130.75,199.92,199.91,4.43932072]
[1756754689202,8.21,199.91,199.88,0.03346143]
[1756754689404,8.21,199.91,199.89,4.44004325]
[1756754689606,8.21,199.91,199.88,0.03346143]
[1756754689801,8.21,199.91,199.89,4.44059985]
[1756754690003,8.21,199.91,199.88,0.03346143]
[1756754690499,122.54,199.92,199.88,0.03346143]
[1756754690696,8.21,199.91,199.88,0.03346143]
[1756754690896,122.54,199.92,199.88,0.03346143]
[1756754691098,8.21,199.91,199.88,0.03346143]
[1756754692107,125.34466551,199.92,199.88,0.03346143]
[1756754692504,8.21,199.91,199.88,0.03346143]
[1756754693007,125.34466551,199.92,199.88,0.03346143]
[1756754693407,8.21,199.91,199.88,0.03346143]
[1756754693805,125.34466551,199.92,199.88,0.03346143]
[1756754694005,8.21,199.91,199.88,0.03346143]
[1756754694206,125.34466551,199.92,199.88,0.03346143]
[1756754694406,8.21,199.91,199.88,0.03346143]
[1756754695013,125.34466551,199.92,199.88,0.03346143]
[1756754695411,8.21,199.91,199.88,0.03346143]
[1756754695911,125.34466551,199.92,199.88,0.03346143]
[1756754696307,8.21,199.91,199.88,0.03346143]
[1756754696715,122.56,199.9,199.88,0.03346143]
[1756754696909,122.54,199.89,199.88,0.03346143]
[1756754697604,8.21,199.91,199.88,0.03346143]
[1756754697809,122.52,199.9,199.88,0.03346143]
[1756754698015,8.21,199.89,199.88,0.03346143]
[1756754699913,8.21,199.89,199.88,4.47660139]
[1756754700815,122.46,199.89,199.88,12.19660139]
[1756754701012,122.46,199.89,199.88,4.47660139]
[1756754702318,130.67,199.89,199.88,4.47660139]
[1756754702512,130.67,199.89,199.88,0.03346143]
[1756754706117,8.21,199.89,199.88,0.03346143]
[1756754706420,130.87,199.89,199.88,0.03346143]
[1756754708615,125.96466551,199.89,199.77,10.97466551]
[1756754708818,7.47,199.88,199.78,4.45219239]
[1756754709018,7.47,199.86,199.79,4.45219239]
[1756754709321,7.47,199.84,199.8,4.45219239]
[1756754709521,7.47,199.84,199.81,4.45219239]
[1756754709715,7.47,199.84,199.82,4.45219239]
[1756754709914,7.50623402,199.84,199.83,4.45219239]
[1756754711019,7.50623402,199.84,199.73,8.17]
[1756754711324,7.16,199.82,199.73,8.17]
[1756754711520,122.62,199.81,199.73,8.17]
[1756754711918,0.03785845,199.79,199.73,8.17]
[1756754712119,122.64,199.78,199.72,8.17]
[1756754712625,122.64,199.78,199.69,8.17]
[1756754712828,7.16,199.77,199.69,8.17]
[1756754713018,7.16,199.77,199.7,3.87196364]
[1756754713216,7.16,199.77,199.69,8.17]
[1756754713425,0.03532943,199.75,199.69,8.17]
[1756754713817,122.62,199.74,199.71,8.17]
[1756754714022,122.62,199.74,199.69,8.17]
[1756754714215,122.62,199.74,199.71,8.17]
[1756754714423,0.03532943,199.75,199.69,8.17]
[1756754714621,0.03532943,199.75,199.72,8.17]
[1756754714825,0.03532943,199.75,199.74,10.97466551]
[1756754717223,0.03532943,199.75,199.74,8.17]
[1756754718627,0.03532943,199.75,199.72,8.17]
[1756754719331,7.19532943,199.75,199.72,8.20793585]
[1756754720831,7.16,199.74,199.72,0.03793585]
[1756754722126,0.03532943,199.75,199.72,0.03793585]
[1756754722127,0.03532943,199.75,199.72,8.20793585]
[1756754722327,22.46,199.74,199.72,8.20793585]
[1756754724131,7.17,199.73,199.72,0.03793585]
[1756754724331,38.95,199.73,199.72,0.03793585]
[1756754725832,122.56,199.73,199.72,0.03793585]
[1756754728538,7.20532943,199.75,199.72,0.03793585]
[1756754728737,122.54,199.74,199.72,0.03793585]
[1756754730038,129.71,199.74,199.72,0.03793585]
[1756754735138,7.17,199.74,199.72,0.03793585]
[1756754735638,122.42,199.73,199.72,0.03793585]
[1756754735834,7.17,199.74,199.72,0.03793585]
[1756754736036,122.4,199.73,199.72,0.03793585]
[1756754739238,129.57,199.73,199.72,0.03793585]
[1756754743947,7.20532943,199.75,199.72,0.03793585]
[1756754744144,7.17,199.73,199.72,0.03793585]
[1756754748646,129.45,199.73,199.72,0.03793585]
[1756754749750,0.03532943,199.75,199.72,7.55793585]
[1756754749950,122.26,199.74,199.72,7.55793585]
[1756754750250,129.43,199.74,199.72,0.03793585]
[1756754750549,7.17,199.73,199.72,0.03793585]
[1756754757353,129.37,199.73,199.72,0.03793585]
[1756754759754,7.17,199.73,199.72,0.03793585]
[1756754759956,129.33,199.73,199.72,0.03793585]
[1756754760254,129.31,199.73,199.72,0.03793585]
[1756754761950,129.29,199.73,199.72,0.03793585]
[1756754764054,7.17,199.74,199.72,0.03793585]
[1756754764259,133.93,199.73,199.72,0.03793585]
[1756754765048,127.1,199.73,199.72,0.03793585]
[1756754765453,7.20532943,199.75,199.72,0.03793585]
[1756754765652,127.08,199.74,199.72,0.03793585]
[1756754765847,127.08,199.73,199.72,0.03793585]
[1756754767354,7.20532943,199.75,199.72,0.03793585]
[1756754767558,126.98,199.74,199.72,0.03793585]
[1756754767953,134.14,199.74,199.72,0.03793585]
[1756754768158,7.16,199.73,199.72,0.03793585]
[1756754768360,134.14,199.73,199.72,0.03793585]
[1756754769652,134.04,199.73,199.72,0.03793585]
[1756754770055,134.04,199.73,199.7,200.0]
[1756754770257,7.13,199.72,199.7,200.0]
[1756754770562,133.97,199.71,199.7,200.0]
[1756754773663,7.13,199.74,199.7,200.0]
[1756754773865,58.04,199.73,199.7,207.88]
[1756754774067,110.98,199.72,199.7,207.88]
[1756754774269,0.03532943,199.75,199.71,7.88]
[1756754774470,126.62,199.74,199.71,7.88]
[1756754774667,0.03532943,199.75,199.7,202.80466551]
[1756754774974,126.62,199.74,199.73,2.80466551]
[1756754775165,126.62,199.74,199.73,10.68466551]
[1756754777972,126.62,199.74,199.73,7.88]
[1756754778977,0.03532943,199.75,199.73,7.88]
[1756754779179,126.42,199.74,199.73,7.88]
[1756754782772,126.42,199.74,199.71,10.68466551]
[1756754782978,126.42,199.74,199.72,7.88]
[1756754783684,133.55,199.74,199.71,2.80466551]
[1756754783884,7.13,199.73,199.71,2.80466551]
[1756754784880,7.13,199.73,199.71,10.68466551]
[1756754785081,126.42,199.74,199.71,10.68466551]
[1756754789980,0.03532943,199.75,199.72,7.88]
[1756754790189,0.03532943,199.75,199.74,10.68466551]
[1756754790387,125.91532943,199.75,199.74,10.68466551]
[1756754792394,125.91532943,199.75,199.74,2.80466551]
[1756754792590,133.04532943,199.75,199.74,2.80466551]
[1756754792791,125.91532943,199.75,199.72,2.80466551]
[1756754793692,7.13,199.74,199.72,2.80466551]
[1756754793995,125.91532943,199.75,199.72,2.80466551]
[1756754794489,7.13,199.74,199.72,2.80466551]
[1756754796897,125.58,199.73,199.72,2.80466551]
[1756754797395,132.71,199.73,199.72,2.80466551]
[1756754797996,125.58,199.73,199.72,2.80466551]
[1756754798696,132.71,199.73,199.72,2.80466551]
[1756754799995,132.71,199.73,199.71,0.03213222]
[1756754799996,7.13,199.72,199.71,0.03213222]
[1756754803001,7.1,199.72,199.7,200.0]
[1756754803303,125.58,199.73,199.7,200.0]
[1756754803702,7.1,199.72,199.7,200.0]
[1756754803894,125.58,199.73,199.7,200.0]
[1756754804499,7.1,199.72,199.7,200.0]
[1756754804696,125.58,199.73,199.7,200.0]
[1756754804900,7.1,199.72,199.7,200.0]
[1756754805408,125.58,199.73,199.7,200.0]
[1756754805608,7.1,199.72,199.7,200.0]
[1756754805808,125.58,199.73,199.7,200.0]
[1756754806905,7.1,199.72,199.7,200.0]
[1756754807107,125.58,199.73,199.7,200.0]
[1756754808011,7.1,199.72,199.7,200.0]
[1756754808408,125.58,199.73,199.7,200.0]
[1756754808609,7.1,199.72,199.7,200.0]
[1756754808808,2.83999494,199.75,199.7,200.0]
[1756754809012,125.12,199.74,199.7,200.0]
[1756754809311,7.1,199.73,199.7,200.0]
[1756754809812,125.12,199.74,199.7,200.0]
[1756754810610,7.1,199.73,199.7,200.0]
[1756754811402,125.12,199.74,199.7,200.0]
[1756754811611,7.1,199.73,199.7,200.0]
[1756754811811,2.83999494,199.75,199.7,200.0]
[1756754812013,7.1,199.73,199.7,200.0]
[1756754812215,125.0,199.74,199.7,200.0]
[1756754812610,2.83999494,199.75,199.7,200.0]
[1756754812809,124.96,199.74,199.7,200.0]
[1756754813114,7.1,199.73,199.7,200.0]
[1756754814010,124.96,199.74,199.7,200.0]
[1756754814210,2.83999494,199.75,199.7,200.0]
[1756754814405,7.1,199.73,199.7,200.0]
[1756754814910,7.1,199.71,199.7,200.0]
[1756754817517,124.04,199.71,199.7,200.0]
[1756754818617,7.1,199.71,199.7,200.0]
[1756754818822,131.84,199.71,199.7,200.0]
[1756754819111,124.74,199.71,199.7,200.0]
[1756754820310,124.74,199.71,199.7,207.57]
[1756754823922,124.74,199.71,199.7,200.0]
[1756754824124,131.83,199.71,199.7,200.0]
[1756754825621,124.74,199.71,199.7,200.0]
[1756754826322,124.74,199.71,199.7,207.57]
[1756754826723,124.74,199.71,199.7,200.0]
[1756754827625,131.83,199.71,199.7,200.0]
[1756754828223,124.74,199.71,199.7,200.0]
[1756754828625,124.74,199.71,199.7,208.08]
[1756754830626,0.03532943,199.75,199.71,8.08]
[1756754831124,124.36,199.74,199.71,8.08]
[1756754831520,124.36,199.74,199.7,200.0]
[1756754831921,124.36,199.74,199.71,8.08]
[1756754832126,124.36,199.74,199.7,200.0]
[1756754832627,124.36,199.73,199.7,200.0]
[1756754832828,0.03532943,199.75,199.7,200.0]
[1756754833026,124.36,199.74,199.7,200.0]
[1756754833225,124.36,199.74,199.71,8.08]
[1756754833421,124.36,199.74,199.7,200.0]
[1756754833826,124.36,199.74,199.71,8.08]
[1756754834026,124.36,199.74,199.7,200.0]
[1756754836024,124.36,199.74,199.71,8.08]
[1756754836432,124.36,199.74,199.7,200.0]
[1756754836631,124.36,199.74,199.71,8.08]
[1756754836829,124.36,199.74,199.7,200.0]
[1756754837027,124.36,199.74,199.71,8.08]
[1756754837229,124.36,199.74,199.7,200.0]
[1756754837632,124.36,199.74,199.71,8.08]
[1756754837830,124.36,199.74,199.7,200.0]
[1756754838032,0.03532943,199.75,199.71,8.08]
[1756754838226,124.16,199.74,199.71,8.08]
[1756754838424,124.16,199.74,199.7,200.0]
[1756754838931,124.16,199.74,199.71,8.08]
[1756754839133,131.25,199.74,199.71,8.08]
[1756754840534,7.09,199.73,199.7,200.0]
[1756754840726,7.09,199.71,199.7,200.0]
[1756754842329,131.13,199.71,199.7,200.0]
[1756754843021,7.09,199.71,199.7,200.0]
[1756754843226,131.11,199.71,199.7,200.0]
[1756754849134,7.09,199.71,199.7,200.0]
[1756754849335,130.91,199.71,199.7,200.0]
[1756754850632,132.70882969,199.71,199.7,200.0]
[1756754851034,8.88882969,199.71,199.7,200.0]
[1756754851234,132.70882969,199.71,199.7,200.0]
[1756754851434,8.88882969,199.71,199.7,200.0]
[1756754851638,132.66882969,199.71,199.7,200.0]
[1756754853238,130.87,199.71,199.7,200.0]
[1756754853439,132.66882969,199.71,199.7,200.0]
[1756754854241,125.57882969,199.71,199.7,200.0]
[1756754855941,1.79882969,199.71,199.7,200.0]
[1756754856142,125.53882969,199.71,199.7,208.08]
[1756754856442,125.49882969,199.71,199.7,208.08]
[1756754857844,125.49882969,199.71,199.7,200.0]
[1756754858343,132.59882969,199.71,199.7,200.0]
[1756754859344,8.89882969,199.71,199.7,200.0]
[1756754859545,132.51882969,199.71,199.7,200.0]
[1756754863544,133.39063869,199.71,199.7,200.0]
[1756754863743,138.98622058,199.71,199.7,93.96869643]
[1756754863945,133.89063869,199.71,199.7,93.96869643]
[1756754864345,142.29677092,199.71,199.7,93.96869643]
[1756754864545,10.27063869,199.71,199.7,77.7020018]
[1756754864846,133.79063869,199.71,199.61,8.1]
[1756754865041,1.79882969,199.64,199.53,8.1]
[1756754865244,123.5,199.63,199.58,1.79882969]
[1756754865450,0.03201057,199.6,199.58,1.79882969]
[1756754865653,123.5,199.59,199.58,1.79882969]
[1756754866251,123.5,199.59,199.58,9.89882969]
[1756754866446,123.5,199.59,199.58,8.1]
[1756754867654,0.03201057,199.6,199.57,8.1]
[1756754867947,0.03201057,199.6,199.56,1.79882969]
[1756754867948,123.48,199.59,199.56,1.79882969]
[1756754868145,123.48,199.59,199.57,8.1]
[1756754868350,123.48,199.59,199.56,1.79882969]
[1756754868550,123.48,199.59,199.57,8.1]
[1756754868751,123.48,199.59,199.56,1.79882969]
[1756754869352,123.48,199.59,199.51,8.1]
[1756754869658,123.48,199.59,199.58,8.1]
[1756754870658,123.44,199.59,199.58,8.1]
[1756754871059,123.42,199.59,199.58,8.1]
[1756754871260,0.03492518,199.6,199.58,8.1]
[1756754871456,123.42,199.59,199.58,8.1]
[1756754871759,123.42,199.59,199.48,8.1]
[1756754871957,1.83375487,199.6,199.54,1.79882969]
[1756754871958,123.42,199.58,199.54,1.79882969]
[1756754872258,123.42,199.58,199.55,8.1]
[1756754872463,123.45390734,199.58,199.54,1.79882969]
[1756754872663,123.45390734,199.58,199.55,8.1]
[1756754872863,0.03390734,199.58,199.54,1.79882969]
[1756754873166,123.4,199.57,199.54,1.79882969]
[1756754873462,123.4,199.57,199.55,8.1]
[1756754874658,130.5,199.57,199.55,8.1]
[1756754874863,130.5,199.57,199.54,1.79882969]
[1756754875458,7.1,199.56,199.54,1.79882969]
[1756754875866,123.34,199.55,199.54,9.89882969]
[1756754878163,123.34,199.55,199.43,4.18833125]
[1756754878164,7.1,199.54,199.51,9.89882969]
[1756754878459,7.13390734,199.58,199.52,8.1]
[1756754878659,123.3,199.57,199.53,1.79882969]
[1756754878858,123.3,199.56,199.54,8.1]
[1756754879364,0.03270494,199.57,199.55,1.79882969]
[1756754879557,0.03270494,199.57,199.56,8.1]
[1756754879757,123.28,199.57,199.56,8.1]
[1756754881364,123.28,199.57,199.56,9.89882969]
[1756754881963,123.28,199.57,199.55,1.79882969]
[1756754882163,123.28,199.57,199.55,8.1]
[1756754882365,123.28,199.57,199.55,9.89882969]
[1756754883069,123.28,199.57,199.56,8.1]
[1756754884368,7.12,199.56,199.53,8.1]
[1756754884568,7.12,199.56,199.53,9.89882969]
[1756754884968,7.12,199.56,199.54,8.1]
[1756754885168,0.03664373,199.56,199.54,8.1]
[1756754885469,123.3,199.55,199.54,8.1]
[1756754887567,0.03664373,199.56,199.54,8.1]
[1756754887870,123.34,199.55,199.54,8.1]
[1756754889069,123.34,199.55,199.54,9.89882969]
[1756754889469,0.03664373,199.56,199.54,9.89882969]
[1756754889665,123.32,199.55,199.54,9.89882969]
[1756754890270,123.32,199.55,199.46,4.5121]
[1756754890568,7.12664373,199.56,199.52,1.79882969]
[1756754890768,1.79882969,199.59,199.44,4.18833125]
[1756754890769,123.28,199.55,199.54,9.64882969]
[1756754892873,123.28,199.55,199.54,7.85]
[1756754893073,123.28,199.55,199.54,1.79882969]
[1756754893266,130.37,199.55,199.54,1.79882969]
[1756754893967,123.28,199.55,199.54,1.79882969]
[1756754894572,123.28,199.55,199.53,1.79882969]
[1756754894768,123.28,199.55,199.53,9.64882969]
[1756754894963,130.37,199.55,199.53,9.64882969]
[1756754896973,130.37,199.55,199.53,7.85]
[1756754897173,130.37,199.55,199.53,9.64882969]
[1756754899774,0.03847835,199.56,199.54,7.85]
[1756754899974,0.03847835,199.56,199.55,1.79882969]
[1756754900176,130.20847835,199.56,199.53,1.79882969]
[1756754900478,130.17,199.55,199.53,1.79882969]
[1756754901068,130.17,199.55,199.51,7.85]
[1756754901269,130.17,199.55,199.53,1.79882969]
[1756754902777,7.09,199.54,199.5,7.85]
[1756754902976,7.09,199.54,199.52,1.79882969]
[1756754903177,7.09,199.53,199.52,1.79882969]
[1756754903577,31.09,199.53,199.52,1.79882969]
[1756754904283,53.89,199.53,199.52,1.79882969]
[1756754904472,7.09,199.53,199.52,1.79882969]
[1756754904675,30.97,199.53,199.52,1.79882969]
[1756754905382,53.59,199.53,199.52,1.79882969]
[1756754905581,7.09,199.53,199.52,1.79882969]
[1756754905782,75.09,199.53,199.52,1.79882969]
[1756754908484,7.09,199.55,199.52,1.79882969]
[1756754908682,95.31,199.54,199.52,1.79882969]
[1756754909882,95.31,199.54,199.52,9.64882969]
[1756754911683,95.31,199.54,199.52,1.79882969]
[1756754916688,7.09,199.53,199.52,1.79882969]
[1756754916986,7.09,199.53,199.5,12.06126643]
[1756754917184,88.22,199.54,199.5,12.06126643]
[1756754917382,95.31,199.54,199.53,1.79882969]
[1756754921092,7.10847835,199.56,199.53,1.79882969]
[1756754921297,7.10847835,199.56,199.55,1.79882969]
[1756754921796,7.07,199.55,199.53,1.79882969]
[1756754921997,0.03847835,199.56,199.53,1.79882969]
[1756754922394,7.07,199.55,199.53,1.79882969]
[1756754923191,0.03847835,199.56,199.53,1.79882969]
[1756754924199,7.07,199.55,199.53,1.79882969]
[1756754924499,0.03847835,199.56,199.53,1.79882969]
[1756754924903,7.07,199.55,199.53,1.79882969]
[1756754925101,0.03847835,199.56,199.53,1.79882969]
[1756754925302,7.07,199.55,199.53,1.79882969]
[1756754925596,0.03847835,199.56,199.53,1.79882969]
[1756754926204,7.07,199.55,199.53,1.79882969]
[1756754926403,0.03847835,199.56,199.53,1.79882969]
[1756754926608,7.07,199.55,199.53,1.79882969]
[1756754926896,0.03847835,199.56,199.53,1.79882969]
[1756754927102,7.07,199.55,199.53,1.79882969]
[1756754927605,0.03847835,199.56,199.53,1.79882969]
[1756754927803,7.07,199.55,199.53,1.79882969]
[1756754927994,0.03847835,199.56,199.53,1.79882969]
[1756754928200,7.07,199.55,199.53,1.79882969]
[1756754928607,0.03847835,199.56,199.53,1.79882969]
[1756754929603,7.07,199.55,199.53,1.79882969]
[1756754929801,0.03847835,199.56,199.53,1.79882969]
[1756754930005,7.07,199.55,199.53,1.79882969]
[1756754931106,0.03847835,199.56,199.53,1.79882969]
[1756754931304,7.07,199.55,199.53,1.79882969]
[1756754932404,7.07,199.55,199.53,9.74882969]
[1756754942607,0.03847835,199.56,199.54,7.95]
[1756754942805,0.03847835,199.56,199.55,9.74882969]
[1756754943207,29.82,199.58,199.56,7.95]
[1756754943513,7.1,199.62,199.58,7.95]
[1756754943704,5.62301332,199.63,199.58,7.95]
[1756754943705,122.9,199.61,199.58,7.95]
[1756754943911,0.03566876,199.59,199.58,7.95]
[1756754944209,0.03566876,199.59,199.58,9.74882969]
[1756754944407,130.0,199.62,199.58,1.79882969]
[1756754944608,130.0,199.62,199.6,9.74882969]
[1756754944808,7.1,199.62,199.6,9.74882969]
[1756754945110,122.9,199.61,199.6,9.74882969]
[1756754946412,7.13826906,199.62,199.6,9.74882969]
[1756754946607,122.9,199.61,199.6,9.74882969]
[1756754947109,7.13826906,199.62,199.6,9.74882969]
[1756754947309,122.9,199.61,199.6,9.74882969]
[1756754948513,122.9,199.61,199.58,1.79882969]
[1756754948703,7.11,199.6,199.58,1.79882969]